fUST/lending_fUST_20240302
["ID","MTS","AMOUNT","RATE_DAILY","PERIOD"]
[316132648,1709371836042,-500.0,0.00021997,2]
[316132649,1709371836052,-500.0,0.00021997,2]
[316132650,1709371836061,-500.0,0.00021997,2]
[316132651,1709371836071,-500.0,0.00021997,2]
[316132652,1709371836080,-500.0,0.00021997,2]
[316132653,1709371836090,-500.0,0.00021997,2]
[316132654,1709371836100,-500.0,0.00021997,2]
[316132655,1709371836109,-500.0,0.00021997,2]
[316132656,1709371836119,-151.125796,0.00021997,2]
[316132657,1709371836128,-500.0,0.00021997,2]
[316132658,1709371836138,-585.5,0.00021997,2]
[316132659,1709371836147,-151.333863,0.00021997,2]
[316132660,1709371836157,-151.0,0.00021997,2]
[316132661,1709371836166,-152.947768,0.00021997,2]
[316132662,1709371836175,-327.2251864,0.00022,2]
[316132663,1709371836185,-157.1486779,0.0002207,2]
[316132664,1709371836194,-188.40118527,0.00022071,2]
[316132665,1709371836207,-153.0,0.00022082,2]
[316132666,1709371836217,-153.0,0.00022082,2]
[316132667,1709371836229,-153.0,0.00022082,2]
[316132668,1709371836241,-153.0,0.00022082,2]
[316132669,1709371836253,-153.0,0.00022082,2]
[316132670,1709371836263,-153.0,0.00022082,2]
[316132671,1709371836273,-167.49101837,0.00022153,2]
[316132672,1709371836284,-192.06679663,0.00022153,2]
[316132673,1709371836294,-700.0,0.00022153,2]
[316132674,1709371836304,-524.61794701,0.00022153,2]
[316132675,1709371836314,-523.85384101,0.00022153,2]
[316132676,1709371836324,-4794.98207289,0.00022153,3]
[316132677,1709371836334,-7197.6360723,0.00022153,2]
[316132678,1709371836344,-509.463057,0.00022153,2]
[316132679,1709371836355,-509.463057,0.00022153,2]
[316132680,1709371836365,-509.463057,0.00022153,2]
[316132681,1709371836374,-509.463057,0.00022153,2]
[316132682,1709371836383,-500.0,0.00022171,2]
[316132683,1709371836476,-500.0,0.00022171,2]
[316132684,1709371836513,-500.0,0.00022171,2]
[316132685,1709371836529,-5513.17,0.00022171,2]
[316132686,1709371836539,-500.0,0.00022171,2]
[316132687,1709371836548,-1534.95,0.00022171,2]
[316132688,1709371836558,-500.0,0.00022171,2]
[316132689,1709371836568,-242.60303199,0.00022171,2]
[316132690,1709371836577,-500.0,0.00022171,2]
[316132691,1709371836587,-500.0,0.00022171,2]
[316132692,1709371836597,-500.0,0.00022171,2]
[316132693,1709371836607,-500.0,0.00022171,2]
[316132694,1709371836617,-506.36575797,0.00022171,2]
[316132695,1709371836626,-649.49,0.00022171,2]
[316132696,1709371836635,-500.0,0.00022171,2]
[316132697,1709371836645,-500.0,0.00022171,2]
[316132698,1709371836654,-623.78,0.00022171,2]
[316132699,1709371836663,-500.0,0.00022171,2]
[316132700,1709371836672,-500.0,0.00022171,2]
[316132701,1709371836681,-3344.44,0.00022171,2]
[316132702,1709371836691,-664.31,0.00022171,2]
[316132703,1709371836701,-509.463057,0.00022171,2]
[316132704,1709371836711,-858.77,0.00022171,2]
[316132705,1709371836721,-509.463057,0.00022171,2]
[316132706,1709371836730,-169.62895986,0.00022172,4]
[316132707,1709371836740,-3937.5,0.00022172,4]
[316132708,1709371836750,-6063.29873035,0.00022172,4]
[316132709,1709371836759,-509.463057,0.00022172,2]
[316132710,1709371836769,-509.46305743,0.00022172,2]
[316132711,1709371836779,-7621.48608418,0.00022195,4]
[316132712,1709371836788,-203.176326,0.00022356,2]
[316132713,1709371836797,-8235.44669183,0.0002259,2]
[316132714,1709371836806,-188.40118527,0.00022986,2]
[316132715,1709371836816,-13714.22615316,0.00022995,2]
[316132716,1709371836825,-500.0,0.00022997,2]
[316132717,1709371836834,-500.0,0.00022998,2]
[316132718,1709371836843,-500.0,0.00022998,2]
[316132719,1709371836852,-500.0,0.00022998,2]
[316132720,1709371836861,-521.95509514,0.00022998,2]
[316132721,1709371836870,-502.95365192,0.00022998,2]
[316132722,1709371836880,-271.78223388,0.00022998,2]
[316132723,1709371836889,-749.44,0.00022998,2]
[316132724,1709371836898,-301.68182499,0.00022998,2]
[316132725,1709371836908,-500.0,0.00022998,2]
[316132726,1709371836917,-500.0,0.00022998,2]
[316132727,1709371836926,-500.0,0.00022998,2]
[316132728,1709371836936,-500.0,0.00022999,2]
[316132729,1709371836945,-500.0,0.00022999,2]
[316132730,1709371836956,-585.5,0.00022999,2]
[316132731,1709371836964,-500.0,0.00022999,2]
[316132732,1709371836973,-500.0,0.00022999,2]
[316132733,1709371836982,-500.0,0.00022999,2]
[316132734,1709371836992,-5513.17,0.00022999,2]
[316132735,1709371837001,-500.0,0.00022999,2]
[316132736,1709371837011,-1534.95,0.00022999,2]
[316132737,1709371837020,-500.0,0.00022999,2]
[316132738,1709371837029,-500.0,0.00022999,2]
[316132739,1709371837038,-500.0,0.00022999,2]
[316132740,1709371837047,-649.49,0.00022999,2]
[316132741,1709371837057,-500.0,0.00022999,2]
[316132742,1709371837066,-500.0,0.00022999,2]
[316132743,1709371837075,-623.78,0.00022999,2]
[316132744,1709371837084,-500.0,0.00022999,2]
[316132745,1709371837093,-500.0,0.00022999,2]
[316132746,1709371837103,-3344.44,0.00022999,2]
[316132747,1709371837112,-664.31,0.00022999,2]
[316132748,1709371837121,-858.77,0.00022999,2]
[316132749,1709371837131,-29594.97961116,0.00023,2]
[316132750,1709371837140,-901.82578742,0.00023,2]
[316132751,1709371837149,-635.90596267,0.00023,2]
[316132752,1709371837159,-1571.57192339,0.00023,2]
[316132753,1709371837169,-1000.0,0.00023211,5]
[316132754,1709371837179,-5000.0,0.00023228,5]
[316132755,1709371837188,-517.72614328,0.00023229,2]
[316132756,1709371837197,-500.0,0.00023229,2]
[316132757,1709371837208,-749.44,0.00023229,2]
[316132758,1709371837217,-500.0,0.00023229,2]
[316132759,1709371837226,-500.0,0.00023229,2]
[316132760,1709371837234,-1000.0,0.0002323,2]
[316132761,1709371837246,-1000.0,0.00023325,2]
[316132762,1709371837256,-1000.0,0.00023419,2]
[316132763,1709371837264,-1413.288124,0.00023452,2]
[316132764,1709371837277,-530.62466616,0.000235,3]
[316132765,1709371837286,-1006.550972,0.00023514,2]
[316132766,1709371837295,-1000.0,0.00023752,5]
[316132767,1709371837304,-5000.0,0.00023761,5]
[316132768,1709371837314,-500.0,0.00023899,2]
[316132769,1709371837324,-585.5,0.00023899,2]
[316132770,1709371837333,-1925.46894897,0.000239,2]
[316132771,1709371837342,-188.40118527,0.000239,2]
[316132772,1709371837352,-500.0,0.00023996,2]
[316132773,1709371837361,-500.0,0.00023997,2]
[316132774,1709371837371,-500.0,0.00023997,2]
[316132775,1709371837380,-500.0,0.00023997,2]
[316132776,1709371837389,-500.0,0.00023997,2]
[316132777,1709371837398,-1534.95,0.00023997,2]
[316132778,1709371837408,-500.0,0.00023997,2]
[316132779,1709371837418,-500.0,0.00023997,2]
[316132780,1709371837427,-500.0,0.00023997,2]
[316132781,1709371837436,-649.49,0.00023997,2]
[316132782,1709371837445,-500.0,0.00023997,2]
[316132783,1709371837456,-500.0,0.00023997,2]
[316132784,1709371837465,-623.78,0.00023997,2]
[316132785,1709371837474,-500.0,0.00023997,2]
[316132786,1709371837484,-500.0,0.00023997,2]
[316132787,1709371837493,-3344.44,0.00023997,2]
[316132788,1709371837503,-664.31,0.00023997,2]
[316132789,1709371837511,-858.77,0.00023997,2]
[316132790,1709371837521,-8443.31756199,0.00023998,2]
[316132791,1709371837530,-155.00155002,0.00023998,2]
[316132792,1709371837539,-155.2358815,0.00023998,2]
[316132793,1709371837548,-155.05892239,0.00023998,2]
[316132794,1709371837561,-502.6862208,0.00023998,2]
[316132795,1709371837573,-1472.4322427,0.00023998,2]
[316132796,1709371837585,-20411.05710098,0.00023998,2]
[316132797,1709371837597,-1592.56843785,0.00023998,2]
[316132798,1709371837609,-744.52927298,0.00023998,2]
[316132799,1709371837621,-274.0783514,0.00023998,2]
[316132800,1709371837631,-238.50130044,0.00023998,2]
[316132801,1709371837641,-321.4643478,0.00023998,2]
[316132802,1709371837651,-5513.17,0.00023998,2]
[316132803,1709371837662,-1226.99119655,0.00023998,2]
[316132804,1709371837674,-500.0,0.00023998,2]
[316132805,1709371837685,-500.0,0.00023998,2]
[316132806,1709371837696,-500.0,0.00023998,2]
[316132808,1709371837708,-500.0,0.00023998,2]
[316132810,1709371837718,-500.0,0.00023998,2]
[316132812,1709371837730,-500.0,0.00023998,2]
[316132813,1709371837740,-289.9562077,0.00023998,2]
[316132814,1709371837751,-500.0,0.00023998,2]
[316132815,1709371837763,-539.47274066,0.00023998,2]
[316132816,1709371837774,-500.0,0.00023998,2]
[316132817,1709371837784,-500.0,0.00023998,2]
[316132818,1709371837794,-500.0,0.00023998,2]
[316132819,1709371837804,-500.0,0.00023998,2]
[316132820,1709371837816,-500.0,0.00023998,2]
[316132821,1709371837827,-500.0,0.00023998,2]
[316132822,1709371837837,-500.0,0.00023998,2]
[316132823,1709371837848,-500.0,0.00023998,2]
[316132824,1709371837860,-568.36434638,0.00023998,2]
[316132825,1709371837870,-500.0,0.00023998,2]
[316132827,1709371837881,-500.0,0.00023998,2]
[316132829,1709371837891,-500.0,0.00023998,2]
[316132831,1709371837903,-206.8947764,0.00023998,2]
[316132833,1709371837914,-499.99999999,0.00023998,2]
[316132834,1709371837925,-462.60524936,0.00023999,3]
[316132835,1709371837935,-1520.48581513,0.00023999,2]
[316132837,1709371837945,-500.0,0.00023999,2]
[316132838,1709371837955,-500.0,0.00023999,2]
[316132840,1709371837967,-500.0,0.00023999,2]
[316132842,1709371837979,-500.0,0.00023999,2]
[316132844,1709371837989,-500.0,0.00023999,2]
[316132846,1709371837999,-500.0,0.00023999,2]
[316132848,1709371838010,-500.0,0.00023999,2]
[316132851,1709371838021,-500.0,0.00023999,2]
[316132853,1709371838031,-500.0,0.00023999,2]
[316132854,1709371838041,-500.0,0.00023999,2]
[316132855,1709371838052,-500.0,0.00023999,2]
[316132857,1709371838062,-500.0,0.00023999,2]
[316132860,1709371838072,-500.0,0.00023999,2]
[316132862,1709371838083,-500.0,0.00023999,2]
[316132864,1709371838094,-584.25267906,0.00023999,2]
[316132866,1709371838105,-585.5,0.00023999,2]
[316132869,1709371838116,-585.5,0.00023999,2]
[316132871,1709371838127,-585.5,0.00023999,2]
[316132873,1709371838138,-585.5,0.00023999,2]
[316132875,1709371838150,-585.5,0.00023999,2]
[316132878,1709371838161,-585.5,0.00023999,2]
[316132880,1709371838173,-585.5,0.00023999,2]
[316132882,1709371838184,-585.5,0.00023999,2]
[316132884,1709371838195,-585.5,0.00023999,2]
[316132887,1709371838208,-585.5,0.00023999,2]
[316132888,1709371838217,-585.5,0.00023999,2]
[316132890,1709371838226,-585.5,0.00023999,2]
[316132892,1709371838236,-585.5,0.00023999,2]
[316132893,1709371838250,-585.5,0.00023999,2]
[316132895,1709371838260,-585.5,0.00023999,2]
[316132897,1709371838270,-585.5,0.00023999,2]
[316132899,1709371838280,-585.5,0.00023999,2]
[316132901,1709371838292,-585.5,0.00023999,2]
[316132903,1709371838303,-585.60668158,0.00023999,2]
[316132905,1709371838314,-500.0,0.00023999,2]
[316132906,1709371838324,-500.0,0.00023999,2]
[316132908,1709371838334,-500.0,0.00023999,2]
[316132910,1709371838346,-500.0,0.00023999,2]
[316132912,1709371838357,-500.0,0.00023999,2]
[316132914,1709371838368,-500.0,0.00023999,2]
[316132916,1709371838378,-500.0,0.00023999,2]
[316132918,1709371838387,-500.0,0.00023999,2]
[316132919,1709371838397,-635.10919078,0.00023999,2]
[316132921,1709371838408,-500.0,0.00023999,2]
[316132923,1709371838419,-500.0,0.00023999,2]
[316132925,1709371838428,-500.0,0.00023999,2]
[316132927,1709371838439,-500.0,0.00023999,2]
[316132929,1709371838450,-500.0,0.00023999,2]
[316132930,1709371838461,-509.6697368,0.00023999,2]
[316132932,1709371838471,-500.0,0.00023999,2]
[316132934,1709371838481,-500.0,0.00023999,2]
[316132936,1709371838491,-500.0,0.00023999,2]
[316132938,1709371838501,-437.39147584,0.00023999,2]
[316132940,1709371838511,-500.0,0.00023999,2]
[316132941,1709371838521,-500.0,0.00023999,2]
[316132943,1709371838530,-5513.17,0.00023999,2]
[316132945,1709371838541,-500.0,0.00023999,2]
[316132947,1709371838551,-5513.17,0.00023999,2]
[316132949,1709371838561,-5513.17,0.00023999,2]
[316132951,1709371838571,-500.0,0.00023999,2]
[316132953,1709371838581,-5513.17,0.00023999,2]
[316132954,1709371838591,-500.0,0.00023999,2]
[316132956,1709371838601,-500.0,0.00023999,2]
[316132958,1709371838611,-5513.17,0.00023999,2]
[316132960,1709371838621,-5513.17,0.00023999,2]
[316132962,1709371838633,-500.0,0.00023999,2]
[316132963,1709371838643,-5513.17,0.00023999,2]
[316132965,1709371838655,-500.0,0.00023999,2]
[316132967,1709371838666,-500.0,0.00023999,2]
[316132969,1709371838677,-5513.17,0.00023999,2]
[316132971,1709371838689,-5513.17,0.00023999,2]
[316132973,1709371838699,-5513.17,0.00023999,2]
[316132975,1709371838713,-5513.17,0.00023999,2]
[316132977,1709371838724,-5513.17,0.00023999,2]
[316132979,1709371838736,-5513.17,0.00023999,2]
[316132981,1709371838747,-5513.17,0.00023999,2]
[316132992,1709371838760,-5513.17,0.00023999,2]
[316132994,1709371838888,-5513.17,0.00023999,2]
[316132996,1709371838898,-5513.17,0.00023999,2]
[316132997,1709371838908,-5513.17,0.00023999,2]
[316132999,1709371838918,-5513.39622147,0.00023999,2]
[316133001,1709371838928,-630.38654082,0.00023999,2]
[316133003,1709371838937,-1534.95,0.00023999,2]
[316133005,1709371838947,-1534.95,0.00023999,2]
[316133007,1709371838961,-1534.95,0.00023999,2]
[316133008,1709371838971,-1534.95,0.00023999,2]
[316133010,1709371838981,-1534.95,0.00023999,2]
[316133012,1709371838990,-1534.95,0.00023999,2]
[316133014,1709371838999,-1534.95,0.00023999,2]
[316133015,1709371839009,-1534.95,0.00023999,2]
[316133017,1709371839018,-1534.95,0.00023999,2]
[316133019,1709371839028,-1534.95,0.00023999,2]
[316133021,1709371839039,-1534.95,0.00023999,2]
[316133023,1709371839048,-1534.95,0.00023999,2]
[316133024,1709371839059,-1534.95,0.00023999,2]
[316133026,1709371839068,-1534.95,0.00023999,2]
[316133028,1709371839077,-1534.95,0.00023999,2]
[316133030,1709371839087,-1534.95,0.00023999,2]
[316133032,1709371839096,-1534.95,0.00023999,2]
[316133034,1709371839106,-1534.95,0.00023999,2]
[316133035,1709371839115,-1535.01435776,0.00023999,2]
[316133037,1709371839125,-570.2,0.00023999,2]
[316133039,1709371839134,-500.0,0.00023999,2]
[316133041,1709371839144,-576.37,0.00023999,2]
[316133042,1709371839153,-749.44,0.00023999,2]
[316133044,1709371839163,-749.44,0.00023999,2]
[316133046,1709371839172,-749.44,0.00023999,2]
[316133048,1709371839181,-749.44,0.00023999,2]
[316133050,1709371839191,-749.44,0.00023999,2]
[316133052,1709371839201,-749.44,0.00023999,2]
[316133053,1709371839215,-749.44,0.00023999,2]
[316133055,1709371839226,-749.44,0.00023999,2]
[316133057,1709371839236,-749.44,0.00023999,2]
[316133059,1709371839248,-749.44,0.00023999,2]
[316133061,1709371839257,-749.44,0.00023999,2]
[316133063,1709371839267,-749.44,0.00023999,2]
[316133065,1709371839277,-749.44,0.00023999,2]
[316133066,1709371839287,-749.44,0.00023999,2]
[316133068,1709371839296,-749.44,0.00023999,2]
[316133070,1709371839305,-749.44,0.00023999,2]
[316133072,1709371839314,-749.44,0.00023999,2]
[316133074,1709371839323,-749.44,0.00023999,2]
[316133076,1709371839334,-749.44,0.00023999,2]
[316133077,1709371839343,-749.56586974,0.00023999,2]
[316133079,1709371839353,-649.49,0.00023999,2]
[316133081,1709371839362,-649.49,0.00023999,2]
[316133083,1709371839371,-649.49,0.00023999,2]
[316133085,1709371839381,-649.49,0.00023999,2]
[316133086,1709371839390,-649.49,0.00023999,2]
[316133088,1709371839399,-649.49,0.00023999,2]
[316133090,1709371839408,-649.49,0.00023999,2]
[316133092,1709371839418,-649.49,0.00023999,2]
[316133094,1709371839427,-649.49,0.00023999,2]
[316133095,1709371839436,-649.49,0.00023999,2]
[316133097,1709371839444,-649.49,0.00023999,2]
[316133099,1709371839455,-649.49,0.00023999,2]
[316133101,1709371839466,-649.49,0.00023999,2]
[316133103,1709371839475,-649.49,0.00023999,2]
[316133105,1709371839485,-649.49,0.00023999,2]
[316133106,1709371839494,-649.49,0.00023999,2]
[316133108,1709371839503,-649.49,0.00023999,2]
[316133110,1709371839512,-649.49,0.00023999,2]
[316133112,1709371839522,-649.50620228,0.00023999,2]
[316133114,1709371839531,-500.0,0.00023999,2]
[316133116,1709371839540,-500.0,0.00023999,2]
[316133117,1709371839550,-500.0,0.00023999,2]
[316133119,1709371839560,-500.0,0.00023999,2]
[316133121,1709371839569,-500.0,0.00023999,2]
[316133123,1709371839579,-500.0,0.00023999,2]
[316133125,1709371839588,-500.0,0.00023999,2]
[316133127,1709371839599,-420.3483715,0.00023999,2]
[316133128,1709371839608,-623.78,0.00023999,2]
[316133130,1709371839617,-623.78,0.00023999,2]
[316133132,1709371839628,-623.78,0.00023999,2]
[316133134,1709371839637,-623.78,0.00023999,2]
[316133136,1709371839646,-623.78,0.00023999,2]
[316133138,1709371839655,-623.78,0.00023999,2]
[316133140,1709371839664,-623.78,0.00023999,2]
[316133143,1709371839673,-623.78,0.00023999,2]
[316133146,1709371839682,-623.78,0.00023999,2]
[316133149,1709371839691,-623.78,0.00023999,2]
[316133152,1709371839700,-623.78,0.00023999,2]
[316133154,1709371839712,-623.78,0.00023999,2]
[316133157,1709371839721,-623.78,0.00023999,2]
[316133160,1709371839731,-623.78,0.00023999,2]
[316133163,1709371839742,-623.78,0.00023999,2]
[316133166,1709371839752,-623.78,0.00023999,2]
[316133169,1709371839761,-623.78,0.00023999,2]
[316133171,1709371839771,-623.78,0.00023999,2]
[316133173,1709371839781,-623.96511145,0.00023999,2]
[316133175,1709371839790,-500.0,0.00023999,2]
[316133177,1709371839800,-500.0,0.00023999,2]
[316133179,1709371839809,-500.0,0.00023999,2]
[316133182,1709371839818,-500.0,0.00023999,2]
[316133185,1709371839827,-500.0,0.00023999,2]
[316133187,1709371839837,-500.0,0.00023999,2]
[316133190,1709371839846,-439.79528162,0.00023999,2]
[316133193,1709371839855,-3344.44,0.00023999,2]
[316133196,1709371839865,-3344.44,0.00023999,2]
[316133198,1709371839874,-3344.44,0.00023999,2]
[316133201,1709371839884,-3344.44,0.00023999,2]
[316133204,1709371839893,-3344.44,0.00023999,2]
[316133207,1709371839902,-3344.44,0.00023999,2]
[316133210,1709371839911,-3344.44,0.00023999,2]
[316133212,1709371839920,-3344.44,0.00023999,2]
[316133215,1709371839929,-3344.44,0.00023999,2]
[316133218,1709371839939,-3344.44,0.00023999,2]
[316133220,1709371839948,-3344.44,0.00023999,2]
[316133222,1709371839959,-3344.44,0.00023999,2]
[316133224,1709371839969,-3344.44,0.00023999,2]
[316133226,1709371839978,-3344.44,0.00023999,2]
[316133227,1709371839987,-3344.44,0.00023999,2]
[316133229,1709371839996,-3344.44,0.00023999,2]
[316133231,1709371840005,-3344.44,0.00023999,2]
[316133233,1709371840014,-3344.44,0.00023999,2]
[316133235,1709371840024,-3344.64773088,0.00023999,2]
[316133237,1709371840033,-664.31,0.00023999,2]
[316133238,1709371840042,-664.31,0.00023999,2]
[316133240,1709371840051,-500.0,0.00023999,2]
[316133242,1709371840060,-500.0,0.00023999,2]
[316133244,1709371840069,-664.31,0.00023999,2]
[316133246,1709371840078,-664.31,0.00023999,2]
[316133247,1709371840088,-664.31,0.00023999,2]
[316133249,1709371840097,-500.0,0.00023999,2]
[316133251,1709371840106,-664.31,0.00023999,2]
[316133253,1709371840115,-500.0,0.00023999,2]
[316133255,1709371840124,-664.31,0.00023999,2]
[316133257,1709371840133,-500.0,0.00023999,2]
[316133258,1709371840142,-664.31,0.00023999,2]
[316133260,1709371840151,-664.31,0.00023999,2]
[316133262,1709371840161,-664.31,0.00023999,2]
[316133264,1709371840170,-664.31,0.00023999,2]
[316133266,1709371840179,-664.31,0.00023999,2]
[316133268,1709371840189,-471.02976881,0.00023999,2]
[316133269,1709371840199,-664.31,0.00023999,2]
[316133271,1709371840209,-664.31,0.00023999,2]
[316133273,1709371840218,-664.31,0.00023999,2]
[316133275,1709371840228,-664.31,0.00023999,2]
[316133277,1709371840237,-664.31,0.00023999,2]
[316133279,1709371840248,-664.31,0.00023999,2]
[316133280,1709371840258,-664.33122032,0.00023999,2]
[316133282,1709371840267,-858.77,0.00023999,2]
[316133284,1709371840280,-858.77,0.00023999,2]
[316133286,1709371840290,-858.77,0.00023999,2]
[316133288,1709371840299,-858.77,0.00023999,2]
[316133290,1709371840309,-858.77,0.00023999,2]
[316133292,1709371840318,-858.77,0.00023999,2]
[316133293,1709371840327,-858.77,0.00023999,2]
[316133295,1709371840338,-858.77,0.00023999,2]
[316133297,1709371840348,-858.77,0.00023999,2]
[316133299,1709371840358,-858.77,0.00023999,2]
[316133301,1709371840368,-858.77,0.00023999,2]
[316133303,1709371840381,-858.77,0.00023999,2]
[316133305,1709371840390,-858.77,0.00023999,2]
[316133307,1709371840399,-858.77,0.00023999,2]
[316133309,1709371840409,-858.77,0.00023999,2]
[316133310,1709371840418,-858.77,0.00023999,2]
[316133312,1709371840428,-858.77,0.00023999,2]
[316133314,1709371840438,-1985945.16172169,0.00024,5]
[316133324,1709371840540,-155.01240099,0.00017801,2]
[316133326,1709371840549,-501.73853523,0.00020547,2]
[316133328,1709371840558,-858.77,0.00023999,2]
[316133330,1709371840567,-858.97264965,0.00023999,2]
[316133332,1709371840576,-718.47641413,0.00024,5]
[316134174,1709371849290,-500.0,0.00020547,2]
[316134177,1709371849300,-500.0,0.00020547,2]
[316134179,1709371849310,-157.1486779,0.00023998,2]
[316134181,1709371849319,-428.64453393,0.00023999,2]
[316134183,1709371849328,-623.51457939,0.00023999,2]
[316134184,1709371849337,-104822.08306878,0.00024,5]
[316143719,1709373033856,-208.71529326,0.00018879,2]
[316143721,1709373033865,-623.51457939,0.0001888,2]
[316143723,1709373033875,-428.64453393,0.0001888,2]
[316143726,1709373033885,-6056.3008176,0.00018883,2]
[316143728,1709373033894,-5010.41871385,0.00019636,2]
[316143730,1709373033905,-4040.85962127,0.00019636,2]
[316143898,1709373038424,-3029.33677033,0.00019636,2]
[316143899,1709373038437,-642.12875709,0.00019636,2]
[316143900,1709373038449,-3155.65122404,0.00019636,2]
[316143901,1709373038460,-1702.55,0.00019636,2]
[316143902,1709373038500,-7319.05491342,0.00019636,2]
[316143903,1709373038510,-182.29031465,0.00019912,2]
[316143904,1709373038519,-1730.4740192,0.00020011,2]
[316143905,1709373038528,-175.946395,0.00020089,2]
[316143907,1709373038538,-500.0,0.00020547,2]
[316143909,1709373038547,-500.0,0.00020547,2]
[316143911,1709373038556,-451.7253466,0.00020547,2]
[316143912,1709373038565,-647.87988568,0.00020547,2]
[316143913,1709373038574,-500.0,0.00020547,2]
[316143914,1709373038585,-500.0,0.00020547,2]
[316143915,1709373038594,-502.49135031,0.00020547,2]
[316143916,1709373038604,-500.0,0.00020547,2]
[316143917,1709373038613,-326.80849412,0.00020547,2]
[316143918,1709373038625,-500.0,0.00020547,2]
[316143919,1709373038635,-500.0,0.00020547,2]
[316143920,1709373038644,-500.0,0.00020547,2]
[316143921,1709373038653,-643.23193934,0.00020547,2]
[316143922,1709373038663,-500.0,0.00020547,2]
[316143923,1709373038672,-500.0,0.00020547,2]
[316143924,1709373038681,-500.0,0.00020547,2]
[316143925,1709373038692,-500.0,0.00020547,2]
[316143926,1709373038702,-500.0,0.00020547,2]
[316143927,1709373038712,-500.0,0.00020547,2]
[316143928,1709373038721,-500.0,0.00020547,2]
[316143929,1709373038731,-500.0,0.00020547,2]
[316143930,1709373038739,-500.0,0.00020547,2]
[316143931,1709373038749,-500.0,0.00020547,2]
[316143932,1709373038758,-543.68572627,0.00020547,2]
[316143933,1709373038767,-500.0,0.00020547,2]
[316143934,1709373038776,-500.0,0.00020547,2]
[316143935,1709373038785,-506.16424642,0.00020547,2]
[316143936,1709373038795,-500.0,0.00020547,2]
[316143937,1709373038804,-500.0,0.00020547,2]
[316143938,1709373038813,-190.58163222,0.00020547,2]
[316143939,1709373038823,-500.0,0.00020547,2]
[316143940,1709373038832,-500.0,0.00020547,2]
[316143941,1709373038841,-500.0,0.00020547,2]
[316143942,1709373038851,-500.0,0.00020547,2]
[316143943,1709373038861,-500.0,0.00020547,2]
[316143944,1709373038870,-500.0,0.00020547,2]
[316143945,1709373038880,-502.2620385,0.00020547,2]
[316143946,1709373038889,-199.1282811,0.00020547,2]
[316143947,1709373038899,-292.79050958,0.00020547,2]
[316143948,1709373038908,-500.0,0.00020547,2]
[316143949,1709373038917,-331.8449325,0.00020547,2]
[316143950,1709373038926,-500.0,0.00020547,2]
[316143951,1709373038936,-500.0,0.00020547,2]
[316143952,1709373038945,-500.91745641,0.00020547,2]
[316143953,1709373038954,-500.0,0.00020547,2]
[316143954,1709373038963,-431.86055815,0.00020547,2]
[316143955,1709373038972,-500.0,0.00020547,2]
[316143956,1709373038981,-500.0,0.00020547,2]
[316143957,1709373038992,-491.65559367,0.00020547,2]
[316143958,1709373039000,-500.0,0.00020547,2]
[316143959,1709373039010,-500.0,0.00020547,2]
[316143960,1709373039019,-500.0,0.00020547,2]
[316143961,1709373039028,-511.89768432,0.00020547,2]
[316143962,1709373039037,-604.15,0.00020547,2]
[316143963,1709373039046,-500.0,0.00020547,2]